[Event "Titled Tuesday Blitz December 20 Late 2022"]
[White "Rorrer, Grayson"]
[Black "Zhigalko, Sergei"]
[WhiteFideId "30944996"]
[BlackFideId "13502956"]
[WhiteElo "2200"]
[BlackElo "2662"]
[Result "0-1"]
[Round "11"]
[TimeControl "180+1"]
[Date "2022.12.20"]
[WhiteClock "0:00:34"]
[BlackClock "0:00:08"]

1. e4 {[%clk 0:03:00]}  c5 {[%clk 0:02:59]} 2. Nf3 {[%clk 0:03:01]}  Nc6 {[%clk 0:03:00]} 3. Bb5 {[%clk 0:03:02]}  Nf6 {[%clk 0:03:00]} 4. Bxc6 {[%clk 0:03:02]}  dxc6 {[%clk 0:03:01]} 5. d3 {[%clk 0:03:03]}  Bg4 {[%clk 0:03:01]} 6. h3 {[%clk 0:03:03]}  Bh5 {[%clk 0:03:02]} 7. b3 {[%clk 0:03:04]}  Nd7 {[%clk 0:03:00]} 8. Bb2 {[%clk 0:03:03]}  Qc7 {[%clk 0:03:00]} 9. Nbd2 {[%clk 0:03:03]}  e5 {[%clk 0:03:00]} 10. g4 {[%clk 0:02:48]}  Bg6 {[%clk 0:03:00]} 11. Nc4 {[%clk 0:02:49]}  f6 {[%clk 0:03:00]} 12. Ne3 {[%clk 0:02:50]}  O-O-O {[%clk 0:02:58]} 13. Qe2 {[%clk 0:02:50]}  Bd6 {[%clk 0:02:58]} 14. O-O-O {[%clk 0:02:48]}  Nf8 {[%clk 0:02:58]} 15. Nh4 {[%clk 0:02:38]}  Ne6 {[%clk 0:02:58]} 16. Nhg2 {[%clk 0:02:38]}  Nd4 {[%clk 0:02:56]} 17. Qf1 {[%clk 0:02:37]}  Rhe8 {[%clk 0:02:55]} 18. Nf5 {[%clk 0:02:36]}  Bf8 {[%clk 0:02:55]} 19. Kb1 {[%clk 0:02:27]}  a5 {[%clk 0:02:42]} 20. c3 {[%clk 0:02:12]}  Ne6 {[%clk 0:02:41]} 21. Bc1 {[%clk 0:02:08]}  a4 {[%clk 0:02:38]} 22. f4 {[%clk 0:02:08]}  Bf7 {[%clk 0:02:32]} 23. Kc2 {[%clk 0:01:58]}  axb3+ {[%clk 0:02:10]} 24. axb3 {[%clk 0:01:59]}  Qb6 {[%clk 0:02:11]} 25. fxe5 {[%clk 0:01:55]}  fxe5 {[%clk 0:01:56]} 26. Nd6+ {[%clk 0:01:44]}  Bxd6 {[%clk 0:01:56]} 27. Qxf7 {[%clk 0:01:44]}  Re7 {[%clk 0:01:54]} 28. Qf2 {[%clk 0:01:40]}  Rf8 {[%clk 0:01:53]} 29. Qe2 {[%clk 0:01:40]}  c4 {[%clk 0:01:51]} 30. Rhf1 {[%clk 0:01:22]}  Ref7 {[%clk 0:01:28]} 31. Rxf7 {[%clk 0:01:07]}  Rxf7 {[%clk 0:01:29]} 32. Rf1 {[%clk 0:01:08]}  Qxb3+ {[%clk 0:01:23]} 33. Kd2 {[%clk 0:01:08]}  cxd3 {[%clk 0:01:17]} 34. Qxd3 {[%clk 0:01:01]}  Nc5 {[%clk 0:01:16]} 35. Qe2 {[%clk 0:00:59]}  Nxe4+ {[%clk 0:01:04]} 36. Qxe4 {[%clk 0:00:50]}  Rxf1 {[%clk 0:01:04]} 37. Ne3 {[%clk 0:00:51]}  Qa2+ {[%clk 0:00:24]} 38. Nc2 {[%clk 0:00:50]}  Qd5+ {[%clk 0:00:20]} 39. Qxd5 {[%clk 0:00:49]}  cxd5 {[%clk 0:00:21]} 40. Ne3 {[%clk 0:00:50]}  Rf2+ {[%clk 0:00:14]} 41. Ke1 {[%clk 0:00:50]}  Rf3 {[%clk 0:00:14]} 42. Nxd5 {[%clk 0:00:50]}  Rxh3 {[%clk 0:00:14]} 43. Ke2 {[%clk 0:00:50]}  Kd7 {[%clk 0:00:12]} 44. Ne3 {[%clk 0:00:44]}  Kc6 {[%clk 0:00:08]} 45. Bd2 {[%clk 0:00:44]}  b5 {[%clk 0:00:08]} 46. g5 {[%clk 0:00:43]}  g6 {[%clk 0:00:07]} 47. Ng4 {[%clk 0:00:43]}  Kd5 {[%clk 0:00:05]} 48. Nf6+ {[%clk 0:00:42]}  Ke6 {[%clk 0:00:06]} 49. Kd1 {[%clk 0:00:37]}  Be7 {[%clk 0:00:06]} 50. Ne4 {[%clk 0:00:36]}  Rh4 {[%clk 0:00:06]} 51. Nf2 {[%clk 0:00:35]}  Kf5 {[%clk 0:00:05]} 52. Ke1 {[%clk 0:00:34]}  Bxg5 {[%clk 0:00:05]} 53. Nd3 {[%clk 0:00:29]}  Bxd2+ {[%clk 0:00:05]} 54. Kxd2 {[%clk 0:00:30]}  Rh2+ {[%clk 0:00:05]} 55. Ke3 {[%clk 0:00:30]}  Rh3+ {[%clk 0:00:06]} 56. Ke2 {[%clk 0:00:30]}  Rxd3 {[%clk 0:00:06]} 57. Kxd3 {[%clk 0:00:31]}  h5 {[%clk 0:00:06]} 58. Ke3 {[%clk 0:00:32]}  h4 {[%clk 0:00:07]} 59. Kf2 {[%clk 0:00:32]}  g5 {[%clk 0:00:07]} 60. Kg1 {[%clk 0:00:33]}  g4 {[%clk 0:00:07]} 61. Kh1 {[%clk 0:00:34]}  Ke6 {[%clk 0:00:08]} 0-1


[Site "https://www.chess.com"]

[Event "Titled Tuesday Blitz December 20 Late 2022"]
[White "Tanenbaum, Zachary"]
[Black "Kleinman, Michael"]
[WhiteFideId "2060850"]
[BlackFideId "2609479"]
[WhiteElo "2751"]
[BlackElo "2465"]
[Result "1-0"]
[Round "11"]
[TimeControl "180+1"]
[Date "2022.12.21"]
[WhiteClock "0:00:14"]
[BlackClock "0:00:06"]

1. e4 {[%clk 0:03:00]}  c6 {[%clk 0:02:59]} 2. d4 {[%clk 0:03:00]}  d5 {[%clk 0:02:59]} 3. exd5 {[%clk 0:03:01]}  cxd5 {[%clk 0:02:59]} 4. Bd3 {[%clk 0:03:02]}  Nc6 {[%clk 0:03:00]} 5. c3 {[%clk 0:03:03]}  Nf6 {[%clk 0:02:59]} 6. Bf4 {[%clk 0:03:03]}  Bg4 {[%clk 0:02:57]} 7. Qb3 {[%clk 0:03:04]}  Qd7 {[%clk 0:02:55]} 8. Nd2 {[%clk 0:03:04]}  e6 {[%clk 0:02:55]} 9. Ngf3 {[%clk 0:03:05]}  Bxf3 {[%clk 0:02:48]} 10. Nxf3 {[%clk 0:03:06]}  Bd6 {[%clk 0:02:35]} 11. Bxd6 {[%clk 0:03:05]}  Qxd6 {[%clk 0:02:36]} 12. O-O {[%clk 0:03:06]}  O-O {[%clk 0:02:36]} 13. Rfe1 {[%clk 0:03:06]}  Rab8 {[%clk 0:02:34]} 14. a4 {[%clk 0:03:06]}  Rfc8 {[%clk 0:02:31]} 15. Ne5 {[%clk 0:03:02]}  Nd7 {[%clk 0:02:24]} 16. f4 {[%clk 0:03:02]}  Nf8 {[%clk 0:02:09]} 17. f5 {[%clk 0:02:48]}  Nxe5 {[%clk 0:02:02]} 18. Rxe5 {[%clk 0:02:37]}  Nd7 {[%clk 0:02:02]} 19. Ree1 {[%clk 0:01:52]}  e5 {[%clk 0:02:03]} 20. Bb5 {[%clk 0:01:35]}  exd4 {[%clk 0:01:48]} 21. cxd4 {[%clk 0:01:21]}  Qb6 {[%clk 0:01:39]} 22. Qxd5 {[%clk 0:01:05]}  Nf6 {[%clk 0:01:35]} 23. Qe5 {[%clk 0:01:05]}  a6 {[%clk 0:01:29]} 24. Bc4 {[%clk 0:00:50]}  Qxb2 {[%clk 0:00:44]} 25. Rab1 {[%clk 0:00:38]}  Qd2 {[%clk 0:00:35]} 26. Bxf7+ {[%clk 0:00:15]}  Kxf7 {[%clk 0:00:32]} 27. Rxb7+ {[%clk 0:00:15]}  Kf8 {[%clk 0:00:06]} 28. Qe7+ {[%clk 0:00:13]}  Kg8 {[%clk 0:00:06]} 29. Qxg7# {[%clk 0:00:14]} 1-0


[Site "https://www.chess.com"]

[Event "Titled Tuesday Blitz December 20 Late 2022"]
[White "Tari, Aryan"]
[Black "Andreikin, Dmitry"]
[WhiteFideId "1510045"]
[BlackFideId "4158814"]
[WhiteElo "2620"]
[BlackElo "2735"]
[Result "1-0"]
[Round "11"]
[TimeControl "180+1"]
[Date "2022.12.20"]
[WhiteClock "0:00:08"]
[BlackClock "0:00:04"]

1. e4 {[%clk 0:02:54]}  e6 {[%clk 0:02:55]} 2. d4 {[%clk 0:02:54]}  d5 {[%clk 0:02:55]} 3. Nc3 {[%clk 0:02:55]}  Nc6 {[%clk 0:02:53]} 4. Nf3 {[%clk 0:02:51]}  Nf6 {[%clk 0:02:52]} 5. Bd3 {[%clk 0:02:51]}  Bb4 {[%clk 0:02:52]} 6. O-O {[%clk 0:02:50]}  Bxc3 {[%clk 0:02:42]} 7. exd5 {[%clk 0:02:50]}  exd5 {[%clk 0:02:11]} 8. bxc3 {[%clk 0:02:49]}  O-O {[%clk 0:02:11]} 9. Bg5 {[%clk 0:02:35]}  Bg4 {[%clk 0:02:09]} 10. h3 {[%clk 0:02:35]}  Bh5 {[%clk 0:02:08]} 11. g4 {[%clk 0:02:30]}  Bg6 {[%clk 0:02:08]} 12. Ne5 {[%clk 0:02:30]}  Qd6 {[%clk 0:02:01]} 13. Bf4 {[%clk 0:02:20]}  Qa3 {[%clk 0:01:53]} 14. Rb1 {[%clk 0:02:09]}  Qxc3 {[%clk 0:01:43]} 15. Rxb7 {[%clk 0:02:00]}  Qxd4 {[%clk 0:01:34]} 16. Nxg6 {[%clk 0:01:17]}  hxg6 {[%clk 0:01:33]} 17. Bxc7 {[%clk 0:01:13]}  Ne4 {[%clk 0:01:20]} 18. Bxe4 {[%clk 0:00:49]}  Qxe4 {[%clk 0:01:21]} 19. Qd3 {[%clk 0:00:41]}  Qe6 {[%clk 0:01:03]} 20. Bg3 {[%clk 0:00:37]}  Rac8 {[%clk 0:00:55]} 21. c3 {[%clk 0:00:35]}  f5 {[%clk 0:00:39]} 22. gxf5 {[%clk 0:00:32]}  Rxf5 {[%clk 0:00:33]} 23. Qe3 {[%clk 0:00:27]}  Ne5 {[%clk 0:00:25]} 24. Qxa7 {[%clk 0:00:12]}  Qf6 {[%clk 0:00:21]} 25. Kg2 {[%clk 0:00:10]}  Kh7 {[%clk 0:00:17]} 26. Qe3 {[%clk 0:00:10]}  Rf8 {[%clk 0:00:15]} 27. Re1 {[%clk 0:00:09]}  Nc4 {[%clk 0:00:14]} 28. Qd4 {[%clk 0:00:09]}  Qxd4 {[%clk 0:00:07]} 29. cxd4 {[%clk 0:00:09]}  Nd2 {[%clk 0:00:08]} 30. Ree7 {[%clk 0:00:09]}  Ne4 {[%clk 0:00:05]} 31. Rxg7+ {[%clk 0:00:09]}  Kh6 {[%clk 0:00:06]} 32. h4 {[%clk 0:00:08]}  Kh5 {[%clk 0:00:04]} 33. Kh3 {[%clk 0:00:08]} 1-0


[Site "https://www.chess.com"]

[Event "Titled Tuesday Blitz December 20 Late 2022"]
[White "Yedidia, Daniel"]
[Black "reevecanada"]
[WhiteFideId "30905907"]
[WhiteElo "2584"]
[BlackElo "2429"]
[Result "1-0"]
[Round "11"]
[TimeControl "180+1"]
[Date "2022.12.21"]
[WhiteClock "0:01:07"]
[BlackClock "0:01:56"]

1. d4 {[%clk 0:03:00]}  c5 {[%clk 0:02:59]} 2. d5 {[%clk 0:03:00]}  d6 {[%clk 0:02:59]} 3. Nc3 {[%clk 0:03:00]}  Nd7 {[%clk 0:02:59]} 4. e4 {[%clk 0:03:00]}  Ngf6 {[%clk 0:03:00]} 5. a4 {[%clk 0:02:57]}  g6 {[%clk 0:03:00]} 6. f4 {[%clk 0:02:57]}  e5 {[%clk 0:02:58]} 7. dxe6 {[%clk 0:02:55]}  fxe6 {[%clk 0:02:59]} 8. Nf3 {[%clk 0:02:54]}  Be7 {[%clk 0:02:58]} 9. Bc4 {[%clk 0:02:54]}  Nb6 {[%clk 0:02:57]} 10. Bb5+ {[%clk 0:02:53]}  Bd7 {[%clk 0:02:57]} 11. e5 {[%clk 0:02:52]}  Nfd5 {[%clk 0:02:53]} 12. Ne4 {[%clk 0:02:46]}  Bxb5 {[%clk 0:02:51]} 13. axb5 {[%clk 0:02:45]}  dxe5 {[%clk 0:02:46]} 14. fxe5 {[%clk 0:02:43]}  O-O {[%clk 0:02:45]} 15. O-O {[%clk 0:02:40]}  Nc7 {[%clk 0:02:41]} 16. Bh6 {[%clk 0:02:36]}  Qxd1 {[%clk 0:02:39]} 17. Rfxd1 {[%clk 0:02:35]}  Rfd8 {[%clk 0:02:37]} 18. Rxd8+ {[%clk 0:02:34]}  Rxd8 {[%clk 0:02:26]} 19. Rxa7 {[%clk 0:02:32]}  Rb8 {[%clk 0:02:27]} 20. Be3 {[%clk 0:02:15]}  Nxb5 {[%clk 0:02:21]} 21. Ra1 {[%clk 0:02:09]}  Rc8 {[%clk 0:02:15]} 22. b4 {[%clk 0:02:04]}  Nd7 {[%clk 0:02:13]} 23. Rd1 {[%clk 0:01:59]}  Rc7 {[%clk 0:02:11]} 24. c4 {[%clk 0:01:54]}  Na3 {[%clk 0:02:09]} 25. bxc5 {[%clk 0:01:47]}  Nxc5 {[%clk 0:02:08]} 26. Nf6+ {[%clk 0:01:34]}  Bxf6 {[%clk 0:02:01]} 27. exf6 {[%clk 0:01:35]}  Nxc4 {[%clk 0:01:59]} 28. Ng5 {[%clk 0:01:09]}  h6 {[%clk 0:01:56]} 29. Rd8# {[%clk 0:01:07]} 1-0


[Site "https://www.chess.com"]

[Event "Titled Tuesday Blitz December 20 Late 2022"]
[White "Young, Ryan"]
[Black "Gerbelli Neto, Eduardo"]
[WhiteFideId "2049945"]
[BlackFideId "2103281"]
[WhiteElo "2436"]
[BlackElo "2178"]
[Result "1-0"]
[Round "11"]
[TimeControl "180+1"]
[Date "2022.12.21"]
[WhiteClock "0:00:05"]
[BlackClock "0:00:02"]

1. e4 {[%clk 0:03:00]}  e5 {[%clk 0:02:59]} 2. Nf3 {[%clk 0:03:00]}  Nc6 {[%clk 0:02:59]} 3. d4 {[%clk 0:03:01]}  exd4 {[%clk 0:03:00]} 4. Nxd4 {[%clk 0:03:02]}  Bc5 {[%clk 0:02:59]} 5. Be3 {[%clk 0:03:00]}  Qf6 {[%clk 0:02:58]} 6. Nb5 {[%clk 0:03:00]}  Bxe3 {[%clk 0:02:57]} 7. fxe3 {[%clk 0:03:01]}  Qh4+ {[%clk 0:02:57]} 8. g3 {[%clk 0:03:00]}  Qxe4 {[%clk 0:02:58]} 9. Nxc7+ {[%clk 0:03:00]}  Kd8 {[%clk 0:02:58]} 10. Nxa8 {[%clk 0:03:01]}  Nf6 {[%clk 0:02:49]} 11. Nc3 {[%clk 0:02:30]}  Qxh1 {[%clk 0:02:46]} 12. Qd6 {[%clk 0:02:30]}  Ne8 {[%clk 0:02:45]} 13. Qf4 {[%clk 0:02:22]}  Qxh2 {[%clk 0:02:45]} 14. O-O-O {[%clk 0:02:21]}  Qh6 {[%clk 0:02:41]} 15. Qf3 {[%clk 0:02:00]}  Ne5 {[%clk 0:02:22]} 16. Qe4 {[%clk 0:01:56]}  f6 {[%clk 0:01:57]} 17. Qd4 {[%clk 0:01:51]}  b6 {[%clk 0:01:48]} 18. Nxb6 {[%clk 0:01:35]}  axb6 {[%clk 0:01:48]} 19. Qxb6+ {[%clk 0:01:35]}  Ke7 {[%clk 0:01:45]} 20. Qc5+ {[%clk 0:01:26]}  Kd8 {[%clk 0:01:30]} 21. Nd5 {[%clk 0:01:20]}  Bb7 {[%clk 0:00:48]} 22. Qb6+ {[%clk 0:01:03]}  Kc8 {[%clk 0:00:48]} 23. Ne7+ {[%clk 0:00:45]}  Kb8 {[%clk 0:00:43]} 24. Ba6 {[%clk 0:00:38]}  Nd6 {[%clk 0:00:22]} 25. Qxd6+ {[%clk 0:00:36]}  Ka7 {[%clk 0:00:22]} 26. Bxb7 {[%clk 0:00:31]}  Qxe3+ {[%clk 0:00:21]} 27. Kb1 {[%clk 0:00:31]}  Kxb7 {[%clk 0:00:20]} 28. Nd5 {[%clk 0:00:30]}  Qf2 {[%clk 0:00:17]} 29. Qb4+ {[%clk 0:00:25]}  Kc8 {[%clk 0:00:16]} 30. Qa5 {[%clk 0:00:20]}  Kb7 {[%clk 0:00:11]} 31. Qb5+ {[%clk 0:00:16]}  Kc8 {[%clk 0:00:10]} 32. Qa6+ {[%clk 0:00:14]}  Kb8 {[%clk 0:00:09]} 33. a3 {[%clk 0:00:11]}  Qc5 {[%clk 0:00:07]} 34. Nb6 {[%clk 0:00:10]}  Qc6 {[%clk 0:00:05]} 35. Nxd7+ {[%clk 0:00:07]}  Kc7 {[%clk 0:00:03]} 36. Qa7+ {[%clk 0:00:05]}  Qb7 {[%clk 0:00:03]} 37. Qxb7+ {[%clk 0:00:05]}  Kxb7 {[%clk 0:00:04]} 38. Nc5+ {[%clk 0:00:06]}  Kc6 {[%clk 0:00:03]} 39. Ne6 {[%clk 0:00:07]}  Rg8 {[%clk 0:00:02]} 40. b4 {[%clk 0:00:07]}  g6 {[%clk 0:00:03]} 41. Kb2 {[%clk 0:00:06]}  Nc4+ {[%clk 0:00:03]} 42. Kb3 {[%clk 0:00:06]}  Nb6 {[%clk 0:00:03]} 43. Nd4+ {[%clk 0:00:06]}  Kb7 {[%clk 0:00:02]} 44. c4 {[%clk 0:00:06]}  Re8 {[%clk 0:00:01]} 45. c5 {[%clk 0:00:06]}  Nd5 {[%clk 0:00:02]} 46. Rc1 {[%clk 0:00:05]} 1-0


[Site "https://www.chess.com"]

[Event "Titled Tuesday Blitz December 20 Late 2022"]
[White "Yuan, Qingyu"]
[Black "Toncheva, Nadya"]
[WhiteFideId "8609772"]
[BlackFideId "2924056"]
[WhiteElo "2759"]
[BlackElo "2538"]
[Result "0-1"]
[Round "11"]
[TimeControl "180+1"]
[Date "2022.12.21"]
[WhiteClock "0:00:01"]
[BlackClock "0:00:43"]

1. e4 {[%clk 0:02:55]}  c5 {[%clk 0:03:00]} 2. Nf3 {[%clk 0:02:54]}  Nc6 {[%clk 0:02:59]} 3. Bb5 {[%clk 0:02:54]}  e6 {[%clk 0:02:59]} 4. Bxc6 {[%clk 0:02:53]}  bxc6 {[%clk 0:03:00]} 5. d3 {[%clk 0:02:53]}  d6 {[%clk 0:02:59]} 6. e5 {[%clk 0:02:51]}  d5 {[%clk 0:02:58]} 7. Nbd2 {[%clk 0:02:47]}  Ne7 {[%clk 0:02:59]} 8. b3 {[%clk 0:02:43]}  Nf5 {[%clk 0:02:58]} 9. Nf1 {[%clk 0:02:36]}  h5 {[%clk 0:02:58]} 10. h4 {[%clk 0:02:35]}  Be7 {[%clk 0:02:54]} 11. Ng3 {[%clk 0:02:12]}  Nxh4 {[%clk 0:02:45]} 12. Nxh4 {[%clk 0:02:06]}  Bxh4 {[%clk 0:02:45]} 13. Nxh5 {[%clk 0:01:53]}  g6 {[%clk 0:02:43]} 14. Ng3 {[%clk 0:01:39]}  Kd7 {[%clk 0:02:27]} 15. Rh3 {[%clk 0:01:12]}  Bxg3 {[%clk 0:02:24]} 16. fxg3 {[%clk 0:01:13]}  Rxh3 {[%clk 0:02:21]} 17. gxh3 {[%clk 0:01:10]}  Qh8 {[%clk 0:02:22]} 18. Bb2 {[%clk 0:00:49]}  Qxh3 {[%clk 0:02:19]} 19. Qf3 {[%clk 0:00:47]}  Qf5 {[%clk 0:02:16]} 20. Qe3 {[%clk 0:00:34]}  d4 {[%clk 0:02:05]} 21. Qe2 {[%clk 0:00:33]}  Qg5 {[%clk 0:01:41]} 22. g4 {[%clk 0:00:29]}  Kc7 {[%clk 0:01:27]} 23. Bc1 {[%clk 0:00:14]}  Qh4+ {[%clk 0:01:25]} 24. Qf2 {[%clk 0:00:14]}  Qxg4 {[%clk 0:01:12]} 25. Ba3 {[%clk 0:00:08]}  Qg5 {[%clk 0:01:03]} 26. Qe2 {[%clk 0:00:02]}  Bd7 {[%clk 0:00:57]} 27. Kf2 {[%clk 0:00:01]}  Rh8 {[%clk 0:00:56]} 28. Rg1 {[%clk 0:00:01]}  Rh2+ {[%clk 0:00:54]} 29. Kf1 {[%clk 0:00:02]}  Qxg1+ {[%clk 0:00:54]} 30. Kxg1 {[%clk 0:00:01]}  Rxe2 {[%clk 0:00:55]} 31. Bxc5 {[%clk 0:00:01]}  Rxc2 {[%clk 0:00:54]} 32. Bxd4 {[%clk 0:00:02]}  Rxa2 {[%clk 0:00:54]} 33. Bc5 {[%clk 0:00:03]}  Rb2 {[%clk 0:00:52]} 34. b4 {[%clk 0:00:03]}  Rd2 {[%clk 0:00:49]} 35. d4 {[%clk 0:00:03]}  Bc8 {[%clk 0:00:46]} 36. Bxa7 {[%clk 0:00:03]}  Ba6 {[%clk 0:00:46]} 37. Bc5 {[%clk 0:00:03]}  Bc4 {[%clk 0:00:45]} 38. Kh1 {[%clk 0:00:03]}  Bd5+ {[%clk 0:00:45]} 39. Kg1 {[%clk 0:00:03]}  Kb7 {[%clk 0:00:45]} 40. Kf1 {[%clk 0:00:03]}  Ka6 {[%clk 0:00:45]} 41. Ke1 {[%clk 0:00:04]}  Ra2 {[%clk 0:00:45]} 42. Kd1 {[%clk 0:00:04]}  Kb5 {[%clk 0:00:46]} 43. Kc1 {[%clk 0:00:05]}  Kc4 {[%clk 0:00:46]} 44. b5 {[%clk 0:00:05]}  cxb5 {[%clk 0:00:45]} 45. Kb1 {[%clk 0:00:06]}  Kc3 {[%clk 0:00:45]} 46. Bd6 {[%clk 0:00:01]}  Bc4 {[%clk 0:00:43]} 0-1


[Site "https://www.chess.com"]

[Event "Titled Tuesday Blitz December 20 Late 2022"]
[White "gshwbedhkhd"]
[Black "Rego, Pedro Filipe"]
[BlackFideId "1904310"]
[WhiteElo "2579"]
[BlackElo "2399"]
[Result "1/2-1/2"]
[Round "11"]
[TimeControl "180+1"]
[Date "2022.12.21"]
[WhiteClock "0:00:08"]
[BlackClock "0:00:43"]

1. e4 {[%clk 0:03:00]}  c5 {[%clk 0:02:59]} 2. b4 {[%clk 0:02:59]}  cxb4 {[%clk 0:02:58]} 3. a3 {[%clk 0:02:59]}  e6 {[%clk 0:02:54]} 4. axb4 {[%clk 0:02:57]}  Bxb4 {[%clk 0:02:54]} 5. c3 {[%clk 0:02:57]}  Be7 {[%clk 0:02:52]} 6. d4 {[%clk 0:02:58]}  d6 {[%clk 0:02:53]} 7. f4 {[%clk 0:02:57]}  Nf6 {[%clk 0:02:52]} 8. Bd3 {[%clk 0:02:56]}  Nc6 {[%clk 0:02:50]} 9. Nf3 {[%clk 0:02:55]}  O-O {[%clk 0:02:47]} 10. O-O {[%clk 0:02:55]}  e5 {[%clk 0:02:47]} 11. fxe5 {[%clk 0:02:52]}  dxe5 {[%clk 0:02:46]} 12. d5 {[%clk 0:02:53]}  Nb8 {[%clk 0:02:46]} 13. Nxe5 {[%clk 0:02:52]}  Nbd7 {[%clk 0:02:44]} 14. Nf3 {[%clk 0:02:37]}  Bd6 {[%clk 0:02:42]} 15. Nbd2 {[%clk 0:02:34]}  Ne5 {[%clk 0:02:37]} 16. Nc4 {[%clk 0:02:29]}  Nxc4 {[%clk 0:02:34]} 17. Bxc4 {[%clk 0:02:29]}  Bg4 {[%clk 0:02:34]} 18. Bd3 {[%clk 0:02:26]}  Re8 {[%clk 0:02:32]} 19. Qa4 {[%clk 0:02:19]}  Qc7 {[%clk 0:02:23]} 20. Bd2 {[%clk 0:02:15]}  Nd7 {[%clk 0:02:18]} 21. h3 {[%clk 0:02:05]}  Bh5 {[%clk 0:02:13]} 22. Nd4 {[%clk 0:02:00]}  Nc5 {[%clk 0:02:10]} 23. Qc2 {[%clk 0:01:58]}  Bg6 {[%clk 0:02:06]} 24. Nf5 {[%clk 0:01:53]}  Bh2+ {[%clk 0:02:02]} 25. Kh1 {[%clk 0:01:52]}  Be5 {[%clk 0:02:02]} 26. Rab1 {[%clk 0:01:44]}  b6 {[%clk 0:02:01]} 27. Bb5 {[%clk 0:01:41]}  Red8 {[%clk 0:01:50]} 28. Bc6 {[%clk 0:01:39]}  Rab8 {[%clk 0:01:43]} 29. c4 {[%clk 0:01:37]}  a5 {[%clk 0:01:39]} 30. Be3 {[%clk 0:01:32]}  Bxf5 {[%clk 0:01:36]} 31. Rxf5 {[%clk 0:01:31]}  Qd6 {[%clk 0:01:34]} 32. Bxc5 {[%clk 0:01:09]}  bxc5 {[%clk 0:01:31]} 33. Bb5 {[%clk 0:01:07]}  Bd4 {[%clk 0:01:25]} 34. Rbf1 {[%clk 0:01:03]}  Rb7 {[%clk 0:01:21]} 35. Qd2 {[%clk 0:00:58]}  Re7 {[%clk 0:01:19]} 36. Qxa5 {[%clk 0:00:56]}  Rf8 {[%clk 0:01:06]} 37. Qe1 {[%clk 0:00:50]}  g6 {[%clk 0:01:03]} 38. R5f4 {[%clk 0:00:46]}  f5 {[%clk 0:01:01]} 39. Qh4 {[%clk 0:00:37]}  Rxe4 {[%clk 0:00:56]} 40. Rxe4 {[%clk 0:00:36]}  fxe4 {[%clk 0:00:57]} 41. Rxf8+ {[%clk 0:00:20]}  Qxf8 {[%clk 0:00:58]} 42. Qxe4 {[%clk 0:00:20]}  Qf1+ {[%clk 0:00:57]} 43. Kh2 {[%clk 0:00:21]}  Qg1+ {[%clk 0:00:48]} 44. Kg3 {[%clk 0:00:20]}  Qf2+ {[%clk 0:00:48]} 45. Kh2 {[%clk 0:00:15]}  Qg1+ {[%clk 0:00:46]} 46. Kg3 {[%clk 0:00:16]}  Qf2+ {[%clk 0:00:47]} 47. Kh2 {[%clk 0:00:08]}  Qg1+ {[%clk 0:00:43]} 1/2-1/2